Workbook

Sheet Sheet1
A1: Profit and Loss
A2: Synergy Home LLC
A3: 2020 thru 2025
B5: 2020 | C5: 2021 | D5: 2022 | E5: 2023 | F5: 2024 | G5: 2025 | I5: Total
A6: Income
A7: Remington
A8: 3 East Division (Park Place) | B8: 70962 | C8: 70964 | D8: 73728 | E8: 79393 | F8: 79700 | G8: 82373.31 | I8: =B8+C8+D8+E8+F8+G8 -> 457120.31
A9: Late Fees | B9: 474 | C9: 2038.9 | D9: 365.5 | E9: -13.9 | F9: 1052.5 | G9: 1003 | I9: =B9+C9+D9+E9+F9+G9 -> 4920
A10: Total for 3 East Division (Park Place) | B10: =B8+B9 -> 71436 | C10: 73002.9 | D10: 74093.5 | E10: 79379.1 | F10: 80752.5 | G10: 83376.31 | I10: =B10+C10+D10+E10+F10+G10 -> 462040.31
A12: Expenses
A13: Remington
A14: 3 East Division (Park Place)
A15: Collection Costs | B15: 1594 | C15: 3747 | D15: -783.75 | F15: 175 | G15: 1350 | I15: =B15+C15+D15+E15+F15+G15 -> 6082.25
A16: Insurance | B16: 4756.35 | C16: 4446.54 | D16: 4577.23 | E16: 5127.96 | F16: 5303.55 | G16: 5062.42 | I16: 29274.05
A17: Repairs & Maintenance | B17: 8176.53 | C17: 14248.55 | D17: 15017.02 | E17: 12351.17 | F17: 17205.84 | G17: 10297.21 | I17: 77296.32
A18: Taxes - Property | B18: 4188.75 | C18: 4239.41 | D18: 4325.65 | E18: 3999.27 | F18: 3632.53 | G18: 3908.03 | I18: 24293.64
A19: Utilities | B19: 9509.91 | C19: 10749.41 | D19: 10920 | E19: 10775.87 | F19: 11755.67 | G19: 12384.62 | I19: 66095.48
A20: Total for 3 East Division (Park Place) | B20: =SUM(B15:B19) -> 28225.54 | C20: =SUM(C15:C19) -> 37430.91 | D20: 34056.15 | E20: 32254.27 | F20: 38072.59 | G20: 33002.28 | I20: =SUM(I15:I19) -> 203041.74
A22: Gross Profit | B22: =B10-B20 -> 43210.46 | C22: 35571.99 | D22: 40037.35 | E22: 47124.83 | F22: 42679.91 | G22: 50374.03 | I22: =I10-I20 -> 258998.57
A24: Accrual Basis Wednesday, April 01, 2026 12:07 AM GMTZ
